fUST/lending_fUST_20240620
["ID","MTS","AMOUNT","RATE_DAILY","PERIOD"]
[329934916,1718845841467,-5000.0,0.0007,120]
[329934918,1718845841476,-1000.0,0.0007,120]
[329934920,1718845841485,-500.0,0.0007,28]
[329934922,1718845841494,-1998.29446918,0.0007,120]
[329934923,1718845841503,-1000.0,0.0007,60]
[329934925,1718845841513,-500.0,0.00070136,120]
[329934927,1718845841522,-241.3,0.00070136,120]
[329934929,1718845841532,-500.0,0.00070136,120]
[329934931,1718845841541,-151.0,0.00070329,120]
[329934933,1718845841550,-151.0,0.00071068,120]
[329934935,1718845841559,-1022.13,0.00071232,120]
[329934937,1718845841567,-1127.66,0.00071232,120]
[329934939,1718845841577,-6416.04,0.00071232,120]
[329934941,1718845841586,-151.0,0.00071808,120]
[329934943,1718845841599,-1000.0,0.00072,120]
[329934945,1718845841608,-685.18,0.00072,120]
[329934947,1718845841617,-500.0,0.00072328,120]
[329934949,1718845841626,-500.0,0.00072328,120]
[329934951,1718845841635,-151.0,0.00072548,120]
[329934953,1718845841644,-151.0,0.00073288,120]
[329934954,1718845841653,-1022.13,0.00073972,120]
[329934956,1718845841662,-1127.66,0.00073972,120]
[329934958,1718845841672,-6416.04,0.00073972,120]
[329934959,1718845841681,-151.0,0.00074027,120]
[329934961,1718845841690,-500.0,0.0007452,120]
[329934963,1718845841699,-500.0,0.0007452,120]
[329934965,1718845841709,-167.44092,0.00074584,120]
[329934967,1718845841718,-151.0,0.00074767,120]
[329934968,1718845841728,-1998.29446918,0.00075,120]
[329934970,1718845841738,-1000.0,0.00075,2]
[329934972,1718845841747,-151.0,0.00075444,120]
[329934974,1718845841756,-151.0,0.00075444,120]
[329934975,1718845841765,-3382.92603219,0.00075444,120]
[329935302,1718845846458,-364.72248874,0.00032,4]
[329935304,1718845846468,-277.50069668,0.00061368,30]
[329936107,1718845874526,35.748985,0.00023,2]
[329936108,1718845876313,154.79876161,0.00021096,2]
[329936109,1718845892250,60.50123839,0.00021096,2]
[329936118,1718846759287,154.79876161,9.999e-05,2]
[329936119,1718846770525,286.0461224,9.999e-05,2]
[329936120,1718846770558,287.2274451,9.999e-05,2]
[329936121,1718846843151,-203.189916,0.00021096,2]
[329936122,1718846843173,-1.810084,0.00021096,2]
[329936124,1718846919157,33.60744117,0.00014,2]
[329936125,1718846919194,125.02160659,0.00014,2]
[329936127,1718846961138,-443.71883241,0.00018996,2]
[329936128,1718846961160,-167.44092,0.00021096,2]
[329936129,1718846961181,-43.52486177,0.00021096,2]
[329936130,1718846971131,-62.98808603,0.00021096,2]
[329936131,1718846971151,-400.6824634,0.00022998,2]
[329936175,1718847038542,-172.5911041,0.00022998,2]
[329936176,1718847038552,-564.11338311,0.00022998,2]
[329936177,1718847038560,-154.79876161,0.00022999,2]
[329936178,1718847038570,-119.17355373,0.00023,2]
[329936179,1718847038587,-443.71883241,0.00023996,2]
[329936180,1718847038599,-155.36697528,0.00024999,2]
[329936181,1718847038608,-5057.37068288,0.00025,30]
[329936182,1718847038621,-412.80292201,0.00025,30]
[329936183,1718847038633,-531.18915863,0.00025,30]
[329936184,1718847038644,-615.37066309,0.00025,2]
[329936185,1718847038653,-644.12070755,0.00025,30]
[329936186,1718847038663,-191.244404,0.00026748,2]
[329936187,1718847038672,-292.2083689,0.00026963,2]
[329936189,1718847038682,-1104.00718681,0.00027265,120]
[329936191,1718847038692,-43.85004508,0.00028388,2]
[329936401,1718847040894,-195.13190362,0.00028388,2]
[329936402,1718847040905,-783.13124269,0.00028995,2]
[329936403,1718847040915,-443.71883241,0.00028996,2]
[329936404,1718847040924,-469.99127,0.0003,4]
[329936405,1718847040935,-1911.6019374,0.000319,2]
[329936406,1718847040947,-1281.10807788,0.000319,2]
[329936407,1718847040959,-11398.10214188,0.000319,2]
[329936408,1718847040971,-364.72248876,0.00032,4]
[329936409,1718847040980,-8823.13575589,0.00032,30]
[329936411,1718847040989,-2333.39348093,0.000325,60]
[329936412,1718847040999,-1693.80801292,0.00035,4]
[329936415,1718847041011,-511.1056432,0.00035,4]
[329936618,1718847043840,-498.90749337,0.00035,4]
[329936621,1718847043854,-154.79876161,0.00035,4]
[329936623,1718847043866,-1191.84374502,0.00035,4]
[329936642,1718847043989,-1235.06,0.00035,4]
[329936700,1718848148149,-573.28081007,0.00014999,2]
[329936701,1718848148170,-986.77752234,0.00015,2]
[329936702,1718848170144,-97.666842,0.00015,2]
[329936703,1718848170165,-154.79876161,0.00021095,2]
[329936704,1718848170187,-10.02732638,0.00021096,2]
[329936705,1718848173119,-157.41359362,0.00021096,2]
[329936706,1718848173139,-321.97413395,0.00022865,2]
[329936707,1718848173693,267.70879198,0.000189,2]
[329936760,1718848232750,-250.81599999,0.00022865,2]
[329937325,1718848241112,-100.5065199,0.00022865,2]
[329937326,1718848241122,-155.06426917,0.00023,2]
[329937327,1718848241132,-267.70879198,0.000239,2]
[329937328,1718848241141,-30.52912751,0.00024,2]
[329937329,1718848241154,-5892.69658042,0.00024,2]
[329937330,1718848241164,-622.66483269,0.00024008,2]
[329937331,1718848241174,-156.0053345,0.00024678,2]
[329937332,1718848241183,-402.15263794,0.00025203,2]
[329937333,1718848241193,-161.43932242,0.00026,2]
[329937334,1718848241203,-285.0,0.00026573,2]
[329937335,1718848241212,-476.87464067,0.00027,15]
[329937336,1718848241221,-1000.0,0.00027268,120]
[329937337,1718848241231,-1000.0,0.00027268,120]
[329937338,1718848241240,-280.6,0.00027268,120]
[329937339,1718848241250,-285.35125356,0.00027268,30]
[329937340,1718848241259,-253.52124593,0.00027268,30]
[329937341,1718848241268,-741.84367123,0.00027268,120]
[329937342,1718848241277,-726.27941882,0.00027268,30]
[329937343,1718848241291,-380.0,0.00027269,2]
[329937344,1718848241300,-166.666666,0.00027284,2]
[329937345,1718848241309,-250.0,0.00027299,2]
[329937346,1718848241319,-804.8199207,0.00027967,2]
[329937348,1718848241329,-166.666666,0.00028028,2]
[329937349,1718848241338,-245.2610321,0.00028121,2]
[329937350,1718848241347,-166.666666,0.00028772,2]
[329937351,1718848241357,-267.70879198,0.000289,2]
[329937352,1718848241366,-783.20721978,0.00029515,2]
[329937353,1718848241376,-166.666666,0.00029516,2]
[329937354,1718848241385,-166.666666,0.00030259,2]
[329937355,1718848241394,-166.666666,0.00031003,2]
[329937356,1718848241404,-5310.18982667,0.00031652,2]
[329937357,1718848241414,-770.24293099,0.00032169,4]
[329937358,1718848241424,-153.0,0.0003217,2]
[329937359,1718848241433,-153.0,0.0003217,2]
[329937360,1718848241442,-153.0,0.0003217,2]
[329937362,1718848241451,-236.12631774,0.00032272,4]
[329937364,1718848241465,-1272.90377962,0.000349,2]
[329937366,1718848241479,-1824.7575363,0.00034998,4]
[329937368,1718848241491,-723.60671151,0.00034998,4]
[329937370,1718848241500,-276.62568895,0.00034999,4]
[329937372,1718848241511,-2948.89759494,0.00035,4]
[329937374,1718848241521,-5483.44521837,0.00035,4]
[329937376,1718848241532,-432.91276472,0.00035,4]
[329937378,1718848241541,-1024.75793432,0.00035,4]
[329937380,1718848241550,-154.79876161,0.00035,4]
[329937382,1718848241560,-264.20612535,0.00035,4]
[329937384,1718848241569,-4727.60564741,0.00035,4]
[329937386,1718848241579,-2705.53233217,0.00035,4]
[329937388,1718848241588,-419.63493664,0.00035,60]
[329937390,1718848241598,-503.587,0.00036023,2]
[329937392,1718848241608,-150.669,0.00036023,2]
[329937394,1718848241617,-957.86686219,0.00037997,30]
[329937396,1718848241627,-342.69464655,0.00037998,4]
[329937398,1718848241636,-154.9291451,0.00037998,4]
[329937399,1718848241646,-465.15105393,0.00037998,30]
[329937401,1718848241655,-274.37735767,0.00037998,15]
[329937403,1718848241664,-502.71848326,0.00037998,15]
[329937405,1718848241674,-9922.9736035,0.00037999,2]
[329937407,1718848241683,-1547.18192631,0.00038,120]
[329937409,1718848241692,-29524.949686,0.00038,30]
[329937411,1718848241702,-808.83662055,0.0004,2]
[329937413,1718848241711,-606.60455608,0.0004,120]
[329937415,1718848241720,-603.43532448,0.0004,60]
[329937417,1718848241729,-643.37216918,0.000419,60]
[329937710,1718848244266,-615.46334949,0.00025,2]
[329937714,1718848244277,-4356.62783082,0.000419,60]
[329937717,1718848244289,-1962.91636673,0.000425,30]
[329937720,1718848244299,-167.44092,0.00044274,2]
[329937724,1718848244308,-150.78889555,0.00044665,2]
[329937727,1718848244317,-3805.74860669,0.000459,60]
[329937730,1718848244326,-154.79876161,0.0005,30]
[329937733,1718848244336,-4701.68005239,0.0005,4]
[329937736,1718848244345,-1112.2386326,0.0005,90]
[329937740,1718848244356,-8887.7613674,0.0005,90]
[329937743,1718848244365,-5000.0,0.000519,60]
[329937746,1718848244375,-682.45,0.00054794,120]
[329937749,1718848244384,-4867.87,0.00054794,120]
[329937752,1718848244394,-500.0,0.00054794,120]
[329937755,1718848244403,-500.0,0.00054794,120]
[329937757,1718848244413,-507.53847674,0.00054795,120]
[329937759,1718848244422,-682.45,0.00057534,120]
[329937761,1718848244432,-4867.87,0.00057534,120]
[329937763,1718848244441,-162.43894238,0.00059898,120]
[329937765,1718848244450,-252.74760286,0.00059899,61]
[329937768,1718848244461,-2000.0,0.00059899,2]
[329937769,1718848244475,-5458.66085994,0.00059899,120]
[329938032,1718848247070,-704.33140347,0.00059899,120]
[329938036,1718848247084,-957.86686219,0.00059899,120]
[329939894,1718849029902,1000.0,0.000225,30]
[329939896,1718849230168,-573.28081007,0.00019999,2]
[329939897,1718849230201,-292.80957049,0.0002,2]
[329939898,1718849230222,-903.22960527,0.0002109,2]
[329939900,1718849250168,-162.23309402,0.0002109,2]
[329939902,1718849352103,-2041.68327301,0.0002109,2]
[329939903,1718849352124,-167.44092,0.00021096,2]
[329939904,1718849367146,-201.94668006,0.00023,2]
[329939905,1718849381848,150.0,0.000204,2]
[329939906,1718849410836,101.84457577,0.0002109,2]
[329939919,1718849433393,-113.51891749,0.0002109,2]
[329939920,1718849433403,-38.81062755,0.00023,2]
[329939921,1718849433412,-402.15263794,0.00025202,2]
[329939922,1718849433421,-17.30781702,0.00025204,2]
[329940172,1718849439920,-598.15553247,0.00025204,2]
[329940174,1718849439931,-364.92306507,0.00025497,2]
[329940571,1718849444996,-102.15071195,0.00025497,2]
[329940575,1718849445006,-467.07377702,0.00025629,2]
[329940584,1718849445017,-170.47351093,0.0002604,2]
[329940593,1718849445029,-296.60026609,0.0002604,2]
[329940599,1718849445039,-224.89078504,0.00026453,2]
[329940631,1718849445736,-1.10959632,0.00026453,2]
[329940634,1718849445749,-241.07339566,0.00026453,2]
[329940635,1718849445759,-148.39906945,0.00026866,2]
[329940696,1718849447775,-318.67470757,0.00026866,2]
[329940697,1718849447785,-467.07377702,0.00026954,2]
[329940698,1718849447795,-186.244404,0.00028571,2]
[329940699,1718849447806,-167.260182,0.00028728,2]
[329940700,1718849447821,-245.7606939,0.00028822,2]
[329940701,1718849447832,-783.20721978,0.00029172,2]
[329940702,1718849447843,-467.07377702,0.00029173,2]
[329940703,1718849447856,-467.07377702,0.00029198,2]
[329940704,1718849447865,-380.0,0.00029302,2]
[329940705,1718849447875,-467.07377702,0.00029332,2]
[329940706,1718849447884,-467.07377702,0.00029357,2]
[329940707,1718849447897,-467.07377702,0.00029901,2]
[329940708,1718849447907,-167.260182,0.00030033,2]
[329940709,1718849447917,-443.15601835,0.00030496,7]
[329940711,1718849894017,573.28081007,9.999e-05,2]
[329941391,1718850309789,277.0,0.00025999,60]
[329941402,1718850443108,-215.3,0.00018999,2]
[329941403,1718850452160,-203.189905,0.00018999,2]
[329941405,1718850478796,-154.79090507,0.00018999,2]
[329941406,1718850478815,-7388.6,0.00019,2]
[329941407,1718850478835,-4456.60909493,0.00019091,2]
[329941408,1718850500495,273.37336231,9.9e-05,2]
[329941410,1718850548153,-995.82650462,0.00016,2]
[329941411,1718850565224,-205.0,0.00016,2]
[329941412,1718850569152,-307.98664281,0.00016,2]
[329941413,1718850569175,-160.00141462,0.00019089,2]
[329941414,1718850569196,-196.94946667,0.00019089,2]
[329941415,1718850569219,-154.85298965,0.00019089,2]
[329941416,1718850569241,-262.07687742,0.00019089,2]
[329941417,1718850569264,-555.89214355,0.0001909,2]
[329941418,1718850569287,-995.64699266,0.0001909,2]
[329941419,1718850569311,-1412.70437711,0.00019091,2]
[329941420,1718850571117,-6148.07517054,0.00019091,2]
[329941421,1718850571137,-167.69661557,0.0002,2]
[329941422,1718850571158,-225.30707158,0.0002,2]
[329941423,1718850571182,-168.735556,0.00021096,2]
[329941424,1718850571203,-250.74519781,0.000224,6]
[329941435,1718850632432,-186.47384264,0.000189,2]
[329941436,1718850632447,-225.2489293,0.0002,2]
[329941437,1718850632457,-19.19185778,0.000224,6]
[329941438,1718850632466,-186.47384264,0.000239,2]
[329941439,1718850632475,-620.14970984,0.00025139,2]
[329941440,1718850632486,-281.04152484,0.0002625,2]
[329941441,1718850632499,-281.04152484,0.00026301,2]
[329941442,1718850632508,-281.04152484,0.00026449,2]
[329941443,1718850632517,-281.04152484,0.00027168,2]
[329941444,1718850632526,-167.260182,0.00027563,2]
[329941445,1718850632535,-281.04152484,0.00027686,2]
[329941446,1718850632544,-209.654322,0.00027869,2]
[329941447,1718850632553,-3000.0,0.00028101,2]
[329941448,1718850632562,-242.49293,0.00028516,2]
[329941449,1718850632572,-281.04152484,0.00028599,2]
[329941450,1718850632581,-281.04152484,0.00028828,2]
[329941451,1718850632590,-281.04152484,0.00028859,2]
[329941452,1718850632600,-186.47384264,0.000289,2]
[329941453,1718850632610,-783.20721978,0.00028999,2]
[329941454,1718850632624,-2586.15724471,0.00029,30]
[329941455,1718850632634,-281.04152484,0.00029169,2]
[329941456,1718850632644,-281.04152484,0.00029257,2]
[329941457,1718850632654,-281.04152484,0.00029274,2]
[329941458,1718850632664,-281.04152484,0.0003018,7]
[329941459,1718850632673,-281.04152484,0.00030403,7]
[329941460,1718850632686,-281.04152484,0.00030909,7]
[329941461,1718850632695,-281.04152484,0.00031021,7]
[329941462,1718850632705,-281.04152484,0.00031059,7]
[329941463,1718850632714,-281.04152484,0.00031135,7]
[329941464,1718850632723,-167.260182,0.00031321,2]
[329941465,1718850632733,-281.04152484,0.00031733,7]
[329941466,1718850632742,-281.04152484,0.00032296,7]
[329941467,1718850632752,-281.04152484,0.0003244,7]
[329941468,1718850632762,-281.04152484,0.00032681,7]
[329941469,1718850632771,-281.04152484,0.00034406,7]
[329941470,1718850632782,-1470.45192594,0.000349,2]
[329941471,1718850632792,-293.59552659,0.00034998,4]
[329941472,1718850632801,-554.59213957,0.00034998,4]
[329941473,1718850632811,-264.61540628,0.00034998,2]
[329941474,1718850632820,-276.85671311,0.00034999,4]
[329941475,1718850632831,-632.81610023,0.00034999,7]
[329941476,1718850632841,-2705.53233217,0.00035,4]
[329941477,1718850632851,-4727.60564741,0.00035,4]
[329941478,1718850632861,-7958.26870547,0.00035,5]
[329941479,1718850632871,-154.79876161,0.00035,4]
[329941480,1718850632882,-281.04152484,0.00035322,7]
[329941481,1718850632891,-281.04152484,0.00035617,7]
[329941482,1718850632902,-281.04152484,0.00035939,7]
[329941483,1718850632912,-281.04152484,0.00036163,7]
[329941484,1718850632923,-259.34533589,0.00036434,7]
[329941556,1718850643614,-402.15263794,0.00025138,2]
[329941557,1718850643624,-615.46334949,0.00025138,2]
[329941558,1718850643634,-21.69618895,0.00036434,7]
[329941559,1718850643643,-281.04152484,0.00036568,7]
[329941560,1718850643653,-281.04152484,0.00036985,7]
[329941562,1718850643662,-1642.67149158,0.00038,120]
[329941563,1718850643672,-281.04152485,0.00038658,7]
[329941564,1718850643681,-808.88059479,0.0004,2]
[329941565,1718850643691,-1963.29851572,0.000425,30]
[329941566,1718850643702,-490.54919745,0.00049999,120]
[329941567,1718850643712,-184.50815294,0.00049999,120]
[329941568,1718850643721,-154.79876161,0.0005,30]
[329941569,1718850643731,-180.0,0.0005,30]
[329941570,1718850643740,-11844.79325786,0.0005,30]
[329941571,1718850643750,-848.30434914,0.0005,30]
[329941572,1718850643825,-151.69565086,0.0005,30]
[329941573,1718850643834,-328.40790047,0.0005,120]
[329941582,1718850646885,-1052.29376938,0.00035259,4]
[329941583,1718850646895,-833.78209953,0.0005,120]
[329941584,1718850646904,-1067.865419,0.00051,85]
[329941585,1718850646913,-1838.4576341,0.00052,120]
[329941589,1718851632127,-178.539113,0.00021096,2]
[329941590,1718851632149,-476.14550118,0.00024,2]
[329941591,1718851642108,-463.67054943,0.00024,2]
[329941592,1718851754264,-171.787636,0.00021096,2]
[329941593,1718851796776,150.0,0.000219,2]
[329941642,1718851832690,-745.63054109,0.00024,2]
[329941643,1718851832700,-300.73662,0.000271,13]
[329941644,1718851832710,-539.84901765,0.00028,2]
[329941645,1718851832723,-75.61433184,0.00028,2]
[329941646,1718851832732,-783.20721978,0.00028995,2]
[329941647,1718851832741,-33.59839751,0.00033479,2]
[329941648,1718851832753,-270.97417209,0.00033479,2]
[329941649,1718851832763,-141.63340184,0.00035,4]
[329942692,1718851846819,-300.0,0.00035,4]
[329943201,1718851875623,83.212364,0.0002,2]
[329943202,1718851875648,157.41359362,0.0002,2]
[329943203,1718851996317,373.13743891,9.999e-05,2]
[329943204,1718851996352,10004.76671188,9.999e-05,2]
[329943205,1718851996381,411.35615652,9.999e-05,2]
[329943206,1718851996410,411.35615652,9.999e-05,2]
[329943207,1718851996440,411.35615652,9.999e-05,2]
[329943208,1718851996471,246.90693915,9.999e-05,2]
[329943209,1718851996500,396.99850069,9.999e-05,2]
[329943210,1718851996530,7000.0,9.999e-05,2]
[329943211,1718851996557,21492.24422446,9.999e-05,2]
[329943212,1718852039013,216.60346298,9.999e-05,2]
[329943213,1718852065821,1582.96582005,0.0001,2]
[329943214,1718852083528,242.71301514,9.999e-05,2]
[329943217,1718852251529,-167.4409208,0.00021096,2]
[329943218,1718852251550,-2646.04719359,0.00025202,2]
[329943219,1718852251571,-1986.51188561,0.00025203,2]
[329943221,1718852441411,292.84715357,9.999e-05,2]
[329943224,1718852843136,-859.26758544,0.00021095,2]
[329943225,1718852851097,-257.38013993,0.00021095,2]
[329943226,1718852851119,-170.545717,0.00021096,2]
[329943227,1718852851139,-25.07414307,0.00025118,2]
[329943228,1718852851170,-267.7730105,0.00025118,2]
[329943229,1718852851192,-1582.96582005,0.00025119,7]
[329943230,1718852851214,-622.83940728,0.00025128,2]
[329943231,1718852851237,-303.168878,0.000252,11]
[329943232,1718852851257,-1764.81495663,0.00025203,2]
[329943233,1718852851280,-238.0,0.00029195,2]
[329943234,1718852851301,-783.20721978,0.00029196,2]
[329943235,1718852851321,-154.79876161,0.00031251,10]
[329943236,1718852851342,-4128.0994546,0.00031364,2]
[329943237,1718852851364,-166.666666,0.00031661,2]
[329943238,1718852851385,-251.446932,0.00031904,2]
[329943239,1718852851407,-416.84238854,0.00032,4]
[329943240,1718852851430,-1499.49899641,0.0003336,2]
[329943241,1718852851450,-2705.53233217,0.00035,4]
[329943242,1718852851471,-3036.68522748,0.00035,4]
[329943243,1718852855683,15749.58189005,9.999e-05,2]
[329943244,1718852859688,1977.60064253,9.999e-05,2]
[329943245,1718852947145,-210.16760757,0.0002,2]
[329943246,1718852989829,272.228684,9.999e-05,2]
[329943247,1718852989857,155.08990453,9.999e-05,2]
[329943248,1718852989890,7502.28999311,9.999e-05,2]
[329943249,1718853026582,3620.0,0.00026,60]
[329943253,1718853033007,-237.69566506,0.00023,2]
[329943254,1718853033019,-148.31650779,0.00029997,2]
[329943256,1718853033036,-413.77015933,0.00029997,2]
[329943259,1718853033047,-150.0,0.000329,2]
[329943260,1718853033057,-467.84459341,0.00035258,4]
[329943262,1718853033066,-307.0,0.00035258,2]
[329943264,1718853033077,-4727.60564741,0.00035259,4]
[329943267,1718853033086,-166.666666,0.00035977,2]
[329943268,1718853033096,-2126.82547799,0.00036731,14]
[329943270,1718853033105,-1052.29376938,0.00036732,4]
[329943272,1718853033114,-2705.53233217,0.00037357,4]
[329943274,1718853033123,-24414.12380755,0.00037521,4]
[329943848,1718853041745,-534.7221217,0.00037521,4]
[329943901,1718853042426,-679.23975741,0.00037521,4]
[329943986,1718853047189,-560.90435964,0.00028039,2]
[329943988,1718853047199,-562.08666712,0.00028139,2]
[329943989,1718853047208,-570.18026075,0.0003752,4]
[329943991,1718853047217,-4822.40541118,0.00037521,4]
[329943997,1718853047266,-11225.05899255,0.00037521,4]
[329943999,1718853047275,-2376.89197045,0.00037522,4]
[329944001,1718853047284,-232.97233372,0.00038,120]
[329944003,1718853047294,-541.04400909,0.00039174,4]
[329944005,1718853047303,-150.18403283,0.00039895,2]
[329944007,1718853047313,-500.0,0.00039897,7]
[329944009,1718853047322,-500.0,0.00039897,7]
[329944011,1718853047331,-500.0,0.00039897,7]
[329944013,1718853047341,-500.0,0.00039897,7]
[329944015,1718853047350,-500.0,0.00039897,7]
[329944017,1718853047360,-296.01579585,0.00039897,7]
[329944019,1718853047369,-500.0,0.00039897,7]
[329944021,1718853047378,-500.0,0.00039897,7]
[329944023,1718853047388,-500.0,0.00039897,7]
[329944025,1718853047397,-500.0,0.00039897,7]
[329944027,1718853047406,-500.0,0.00039897,7]
[329944029,1718853047415,-500.0,0.00039897,7]
[329944031,1718853047424,-500.0,0.00039897,7]
[329944033,1718853047434,-1445.98834814,0.00039898,2]
[329944035,1718853047443,-164.44,0.00039987,3]
[329944037,1718853047452,-657.78,0.00039988,3]
[329944039,1718853047461,-328.89,0.00039988,3]
[329944041,1718853047470,-493.35,0.00039988,3]
[329944043,1718853047479,-952.16280453,0.00039993,4]
[329944045,1718853047488,-2422.44441829,0.00039994,4]
[329944047,1718853047497,-946.94724206,0.00039994,4]
[329944048,1718853047506,-14031.16618774,0.00039994,4]
[329944050,1718853047515,-1348.13514191,0.00039996,4]
[329944053,1718853047525,-517.79053728,0.00039996,4]
[329944054,1718853047534,-182.71083848,0.00039996,4]
[329944056,1718853047543,-469.99127,0.00039996,4]
[329944058,1718853047553,-217.03246266,0.00039996,4]
[329944060,1718853047562,-318.63690139,0.00039996,4]
[329944062,1718853047571,-243.19105473,0.00039996,4]
[329944064,1718853047581,-2764.41142288,0.00039996,4]
[329944066,1718853047590,-880.2665144,0.00039996,4]
[329944068,1718853047599,-151.0,0.00039996,2]
[329944070,1718853047609,-151.0,0.00039996,2]
[329944072,1718853047618,-151.0,0.00039996,2]
[329944074,1718853047627,-878.84919182,0.00039996,2]
[329944076,1718853047636,-306.80016078,0.00039996,10]
[329944078,1718853047646,-209.14692796,0.00039997,4]
[329944080,1718853047657,-553.08313978,0.00039997,4]
[329944082,1718853047667,-154.79876161,0.00039998,4]
[329944084,1718853047676,-270.16174361,0.00039998,4]
[329944086,1718853047686,-213.65126975,0.00039998,4]
[329944088,1718853047695,-703.75507901,0.00039998,4]
[329944090,1718853047704,-395.78177237,0.00039998,4]
[329944092,1718853047713,-155.31154211,0.00039998,4]
[329944094,1718853047722,-235.12367001,0.00039998,2]
[329944096,1718853047731,-932.70635835,0.00039998,4]
[329944098,1718853047740,-155.28620724,0.00039998,4]
[329944100,1718853047749,-225.43199399,0.00039998,4]
[329944102,1718853047759,-19013.97842573,0.00039998,2]
[329944188,1718853556636,151.0,0.00026,60]
[329944194,1718854030164,-405.13658506,0.00021083,2]
[329944195,1718854052198,-156.95008206,0.00021083,2]
[329944196,1718854052222,-1582.96582005,0.00021084,3]
[329944197,1718854052245,-170.102174,0.00021096,2]
[329944198,1718854052270,-164.612344,0.00028788,2]
[329944199,1718854052293,-177.329118,0.00028788,2]
[329944200,1718854052316,-702.43627944,0.00029147,2]
[329944202,1718854158079,-196.94946667,0.00019,2]
[329944203,1718854158102,-573.28081007,0.00021095,2]
[329944204,1718854158123,-170.102174,0.00021096,2]
[329944205,1718854158144,-222.62188226,0.000224,6]
[329944249,1718854239126,-28.12331555,0.000224,6]
[329944250,1718854239139,-2097.63687867,0.000224,2]
[329944251,1718854239151,-292.84715357,0.00026574,2]
[329944252,1718854239162,-80.77094034,0.00029147,2]
[329944253,1718854239172,-225.30707158,0.00029147,2]
[329944254,1718854239182,-164.612344,0.00029148,2]
[329944255,1718854239192,-177.329118,0.00029267,2]
[329944256,1718854239202,-164.612344,0.00029507,2]
[329944257,1718854239212,-177.329118,0.00029747,2]
[329944258,1718854239223,-164.612344,0.00029867,2]
[329944259,1718854239233,-155.24291871,0.00029999,2]
[329944260,1718854239244,-177.329118,0.00030227,2]
[329944261,1718854239254,-164.612344,0.00030227,2]
[329944262,1718854239391,-2126.82547799,0.00035259,14]
[329944263,1718854239403,-2405.67542072,0.00037519,4]
[329944264,1718854239413,-1547.18192631,0.00038,120]
[329944265,1718854239423,-995.64699266,0.00038496,4]
[329944266,1718854239434,-262.07687742,0.00038496,4]
[329944267,1718854239446,-512.98664281,0.00038496,4]
[329944268,1718854239458,-154.85298965,0.00038496,4]
[329944269,1718854239468,-167.69661557,0.00038496,4]
[329944270,1718854239479,-156.74911334,0.00038496,2]
[329944271,1718854239489,-154.79876161,0.00038496,4]
[329944272,1718854239498,-160.00141462,0.00038497,4]
[329944273,1718854239508,-500.0,0.00038497,7]
[329944274,1718854239518,-199.55731065,0.00038497,7]
[329944275,1718854239529,-377.8718272,0.00038498,4]
[329944276,1718854239540,-504.7607068,0.00038498,4]
[329944277,1718854239551,-5708.42732189,0.00038498,4]
[329944278,1718854239561,-401.10123848,0.00038498,4]
[329944279,1718854239571,-185.08492997,0.00038498,2]
[329944280,1718854239582,-1565.63337951,0.00038498,2]
[329944341,1718854241205,-1754.62386552,0.00038498,2]
[329944375,1718854244157,-905.1045208,0.00038498,2]
[329944428,1718854246859,-3335.41778182,0.00038498,2]
[329944430,1718854246870,-1697.86507624,0.00038499,4]
[329944432,1718854246880,-787.86700654,0.00038499,4]
[329944434,1718854246890,-8799.99,0.000395,45]
[329944436,1718854246900,-150.18403279,0.000399,2]
[329944438,1718854246909,-2054.27824652,0.00039997,4]
[329944463,1718855181855,292.84715357,9.999e-05,2]
[329944464,1718855228115,-168.885823,0.00021096,2]
[329944465,1718855228138,-36.114177,0.000224,2]
[329944466,1718855229861,-936.49379768,0.000224,2]
[329944467,1718855229885,-5819.3231061,0.00022897,2]
[329944468,1718855229908,-620.28356645,0.00025151,2]
[329944469,1718855229931,-153.84678128,0.0002619,2]
[329944470,1718855229954,-292.84715357,0.00026249,2]